{"text_format":"1","workbook":"xlsx","n_sheets":4,"sheets":["Склад","Лист2","Лист3","Лист1"],"not_rendered":{"charts":0,"images":1,"macros":1,"external_links":0,"defined_names":2,"comments":0,"pivot_tables":0},"unopened":[],"bounds":{"document_bytes":16777216,"sheet_cells":100000,"rows_first":2000,"rows_last":500,"rows_between":2000,"halvings":0,"cell_chars":16384,"cell_head_chars":4096},"cells_cut":0,"cells_raw":0,"read":"whole","date_system":"1900"}

{"sheet":"Склад","index":0,"n_rows":500,"n_cols":25,"rows_kept":500,"cut":false,"hidden":false,"merged":[]}
["Категория","Название","Артикул","Ссылка","Цена, р.","Цена, тг.","Маржа","Цена","Склад","+","-","Курс",3.49,"%",40,{"$f":"O1/100","v":0.4},null,null,null,null,null,null,"+","-"]
["Зеркало","ТРЕНСУМ","245.244.85","http://www.ikea.com/ru/ru/catalog/products/24524485/",299,{"$f":"E2*M$1","v":1043.51},{"$f":"F2*P$1","v":417.404},{"$f":"F2+G2","v":1460.914},4,4,0,null,null,null,null,null,null,null,null,null,null,null,6,6,7]
["Часы","КЛОККИС","802.770.04","http://www.ikea.com/ru/ru/catalog/products/80277004/?query=%D0%BA%D0%BB%D0%BE%D0%BA%D0%BA%D0%B8%D1%81",299,1043.51,417.404,1460.914,1,8,7]
["Игрушка","МУЛА","600.619.67","http://www.ikea.com/ru/ru/catalog/products/60061967/",299,1043.51,417.404,1460.914,4,6,2]
[null,null,null,null,null,0,0,0,2,2,0]
[null,null,null,null,null,0,0,0,0,0,0]
[null,null,null,null,null,0,0,0,0,0,0]
[null,null,null,null,null,0,0,0,0,0,0]
[null,null,null,null,null,0,0,0,0,0,0]
[null,null,null,null,null,0,0,0,0,0,0]
[null,null,null,null,null,0,0,0,0,0,0]
[null,null,null,null,null,0,0,0,0,0,0]
[null,null,null,null,null,0,0,0,0,0,0]
[null,null,null,null,null,0,0,0,0,0,0]
[null,null,null,null,null,0,0,0,0,0,0]
[null,null,null,null,null,0,0,0,0,0,0]
[null,null,null,null,null,0,0,0,0,0,0]
[null,null,null,null,null,0,0,0,0,0,0]
[null,null,null,null,null,0,0,0,0,0,0]
[null,null,null,null,null,0,0,0,0,0,0]
[null,null,null,null,null,0,0,0,0,0,0]
[null,null,null,null,null,0,0,0,0,0,0]
[null,null,null,null,null,0,0,0,0,0,0]
[null,null,null,null,null,0,0,0,0,0,0]
[null,null,null,null,null,0,0,0,0,0,0]
[null,null,null,null,null,0,0,0,0,0,0]
[null,null,null,null,null,0,0,0,0,0,0]
[null,null,null,null,null,0,0,0,0,0,0]
[null,null,null,null,null,0,0,0,0,0,0]
[null,null,null,null,null,0,0,0,0,0,0]
[null,null,null,null,null,0,0,0,0,0,0]
[null,null,null,null,null,0,0,0,0,0,0]
[null,null,null,null,null,0,0,0,0,0,0]
[null,null,null,null,null,0,0,0,0,0,0]
[null,null,null,null,null,0,0,0,0,0,0]
[null,null,null,null,null,0,0,0,0,0,0]
[null,null,null,null,null,0,0,0,0,0,0]
[null,null,null,null,null,0,0,0,0,0,0]
[null,null,null,null,null,0,0,0,0,0,0]
[null,null,null,null,null,0,0,0,0,0,0]
[null,null,null,null,null,0,0,0,0,0,0]
[null,null,null,null,null,0,0,0,0,0,0]
[null,null,null,null,null,0,0,0,0,0,0]
[null,null,null,null,null,0,0,0,0,0,0]
[null,null,null,null,null,0,0,0,0,0,0]
[null,null,null,null,null,0,0,0,0,0,0]
[null,null,null,null,null,0,0,0,0,0,0]
[null,null,null,null,null,0,0,0,0,0,0]
[null,null,null,null,null,0,0,0,0,0,0]
[null,null,null,null,null,0,0,0,0,0,0]
[null,null,null,null,null,0,0,0,0,0,0]
[null,null,null,null,null,0,0,0,0,0,0]
[null,null,null,null,null,0,0,0,0,0,0]
[null,null,null,null,null,0,0,0,0,0,0]
[null,null,null,null,null,0,0,0,0,0,0]
[null,null,null,null,null,0,0,0,0,0,0]
[null,null,null,null,null,0,0,0,0,0,0]
[null,null,null,null,null,0,0,0,0,0,0]
[null,null,null,null,null,0,0,0,0,0,0]
[null,null,null,null,null,0,0,0,0,0,0]
[null,null,null,null,null,0,0,0,0,0,0]
[null,null,null,null,null,0,0,0,0,0,0]
[null,null,null,null,null,0,0,0,0,0,0]
[null,null,null,null,null,0,0,0,0,0,0]
[null,null,null,null,null,0,0,0,0,0,0]
[null,null,null,null,null,{"$f":"E66*M$1","v":0},{"$f":"F66*P$1","v":0},{"$f":"F66+G66","v":0},0,0,0]
[null,null,null,null,null,0,0,0,0,0,0]
[null,null,null,null,null,0,0,0,0,0,0]
[null,null,null,null,null,0,0,0,0,0,0]
[null,null,null,null,null,0,0,0,0,0,0]
[null,null,null,null,null,0,0,0,0,0,0]
[null,null,null,null,null,0,0,0,0,0,0]
[null,null,null,null,null,0,0,0,0,0,0]
[null,null,null,null,null,0,0,0,0,0,0]
[null,null,null,null,null,0,0,0,0,0,0]
[null,null,null,null,null,0,0,0,0,0,0]
[null,null,null,null,null,0,0,0,0,0,0]
[null,null,null,null,null,0,0,0,0,0,0]
[null,null,null,null,null,0,0,0,0,0,0]
[null,null,null,null,null,0,0,0,0,0,0]
[null,null,null,null,null,0,0,0,0,0,0]
[null,null,null,null,null,0,0,0,0,0,0]
[null,null,null,null,null,0,0,0,0,0,0]
[null,null,null,null,null,0,0,0,0,0,0]
[null,null,null,null,null,0,0,0,0,0,0]
[null,null,null,null,null,0,0,0,0,0,0]
[null,null,null,null,null,0,0,0,0,0,0]
[null,null,null,null,null,0,0,0,0,0,0]
[null,null,null,null,null,0,0,0,0,0,0]
[null,null,null,null,null,0,0,0,0,0,0]
[null,null,null,null,null,0,0,0,0,0,0]
[null,null,null,null,null,0,0,0,0,0,0]
[null,null,null,null,null,0,0,0,0,0,0]
[null,null,null,null,null,0,0,0,0,0,0]
[null,null,null,null,null,0,0,0,0,0,0]
[null,null,null,null,null,0,0,0,0,0,0]
[null,null,null,null,null,0,0,0,0,0,0]
[null,null,null,null,null,0,0,0,0,0,0]
[null,null,null,null,null,0,0,0,0,0,0]
[null,null,null,null,null,0,0,0,0,0,0]
[null,null,null,null,null,0,0,0,0,0,0]
[null,null,null,null,null,0,0,0,0,0,0]
[null,null,null,null,null,0,0,0,0,0,0]
[null,null,null,null,null,0,0,0,0,0,0]
[null,null,null,null,null,0,0,0,0,0,0]
[null,null,null,null,null,0,0,0,0,0,0]
[null,null,null,null,null,0,0,0,0,0,0]
[null,null,null,null,null,0,0,0,0,0,0]
[null,null,null,null,null,0,0,0,0,0,0]
[null,null,null,null,null,0,0,0,0,0,0]
[null,null,null,null,null,0,0,0,0,0,0]
[null,null,null,null,null,0,0,0,0,0,0]
[null,null,null,null,null,0,0,0,0,0,0]
[null,null,null,null,null,0,0,0,0,0,0]
[null,null,null,null,null,0,0,0,0,0,0]
[null,null,null,null,null,0,0,0,0,0,0]
[null,null,null,null,null,0,0,0,0,0,0]
[null,null,null,null,null,0,0,0,0,0,0]
[null,null,null,null,null,0,0,0,0,0,0]
[null,null,null,null,null,0,0,0,0,0,0]
[null,null,null,null,null,0,0,0,0,0,0]
[null,null,null,null,null,0,0,0,0,0,0]
[null,null,null,null,null,0,0,0,0,0,0]
[null,null,null,null,null,0,0,0,0,0,0]
[null,null,null,null,null,0,0,0,0,0,0]
[null,null,null,null,null,0,0,0,0,0,0]
[null,null,null,null,null,0,0,0,0,0,0]
[null,null,null,null,null,0,0,0,0,0,0]
[null,null,null,null,null,0,0,0,0,0,0]
[null,null,null,null,null,{"$f":"E130*M$1","v":0},{"$f":"F130*P$1","v":0},{"$f":"F130+G130","v":0},0,0,0]
[null,null,null,null,null,0,0,0,0,0,0]
[null,null,null,null,null,0,0,0,0,0,0]
[null,null,null,null,null,0,0,0,0,0,0]
[null,null,null,null,null,0,0,0,0,0,0]
[null,null,null,null,null,0,0,0,0,0,0]
[null,null,null,null,null,0,0,0,0,0,0]
[null,null,null,null,null,0,0,0,0,0,0]
[null,null,null,null,null,0,0,0,0,0,0]
[null,null,null,null,null,0,0,0,0,0,0]
[null,null,null,null,null,0,0,0,0,0,0]
[null,null,null,null,null,0,0,0,0,0,0]
[null,null,null,null,null,0,0,0,0,0,0]
[null,null,null,null,null,0,0,0,0,0,0]
[null,null,null,null,null,0,0,0,0,0,0]
[null,null,null,null,null,0,0,0,0,0,0]
[null,null,null,null,null,0,0,0,0,0,0]
[null,null,null,null,null,0,0,0,0,0,0]
[null,null,null,null,null,0,0,0,0,0,0]
[null,null,null,null,null,0,0,0,0,0,0]
[null,null,null,null,null,0,0,0,0,0,0]
[null,null,null,null,null,0,0,0,0,0,0]
[null,null,null,null,null,0,0,0,0,0,0]
[null,null,null,null,null,0,0,0,0,0,0]
[null,null,null,null,null,0,0,0,0,0,0]
[null,null,null,null,null,0,0,0,0,0,0]
[null,null,null,null,null,0,0,0,0,0,0]
[null,null,null,null,null,0,0,0,0,0,0]
[null,null,null,null,null,0,0,0,0,0,0]
[null,null,null,null,null,0,0,0,0,0,0]
[null,null,null,null,null,0,0,0,0,0,0]
[null,null,null,null,null,0,0,0,0,0,0]
[null,null,null,null,null,0,0,0,0,0,0]
[null,null,null,null,null,0,0,0,0,0,0]
[null,null,null,null,null,0,0,0,0,0,0]
[null,null,null,null,null,0,0,0,0,0,0]
[null,null,null,null,null,0,0,0,0,0,0]
[null,null,null,null,null,0,0,0,0,0,0]
[null,null,null,null,null,0,0,0,0,0,0]
[null,null,null,null,null,0,0,0,0,0,0]
[null,null,null,null,null,0,0,0,0,0,0]
[null,null,null,null,null,0,0,0,0,0,0]
[null,null,null,null,null,0,0,0,0,0,0]
[null,null,null,null,null,0,0,0,0,0,0]
[null,null,null,null,null,0,0,0,0,0,0]
[null,null,null,null,null,0,0,0,0,0,0]
[null,null,null,null,null,0,0,0,0,0,0]
[null,null,null,null,null,0,0,0,0,0,0]
[null,null,null,null,null,0,0,0,0,0,0]
[null,null,null,null,null,0,0,0,0,0,0]
[null,null,null,null,null,0,0,0,0,0,0]
[null,null,null,null,null,0,0,0,0,0,0]
[null,null,null,null,null,0,0,0,0,0,0]
[null,null,null,null,null,0,0,0,0,0,0]
[null,null,null,null,null,0,0,0,0,0,0]
[null,null,null,null,null,0,0,0,0,0,0]
[null,null,null,null,null,0,0,0,0,0,0]
[null,null,null,null,null,0,0,0,0,0,0]
[null,null,null,null,null,0,0,0,0,0,0]
[null,null,null,null,null,0,0,0,0,0,0]
[null,null,null,null,null,0,0,0,0,0,0]
[null,null,null,null,null,0,0,0,0,0,0]
[null,null,null,null,null,0,0,0,0,0,0]
[null,null,null,null,null,0,0,0,0,0,0]
[null,null,null,null,null,{"$f":"E194*M$1","v":0},{"$f":"F194*P$1","v":0},{"$f":"F194+G194","v":0},0,0,0]
[null,null,null,null,null,0,0,0,0,0,0]
[null,null,null,null,null,0,0,0,0,0,0]
[null,null,null,null,null,0,0,0,0,0,0]
[null,null,null,null,null,0,0,0,0,0,0]
[null,null,null,null,null,0,0,0,0,0,0]
[null,null,null,null,null,0,0,0,0,0,0]
[null,null,null,null,null,0,0,0,0,0,0]
[null,null,null,null,null,0,0,0,0,0,0]
[null,null,null,null,null,0,0,0,0,0,0]
[null,null,null,null,null,0,0,0,0,0,0]
[null,null,null,null,null,0,0,0,0,0,0]
[null,null,null,null,null,0,0,0,0,0,0]
[null,null,null,null,null,0,0,0,0,0,0]
[null,null,null,null,null,0,0,0,0,0,0]
[null,null,null,null,null,0,0,0,0,0,0]
[null,null,null,null,null,0,0,0,0,0,0]
[null,null,null,null,null,0,0,0,0,0,0]
[null,null,null,null,null,0,0,0,0,0,0]
[null,null,null,null,null,0,0,0,0,0,0]
[null,null,null,null,null,0,0,0,0,0,0]
[null,null,null,null,null,0,0,0,0,0,0]
[null,null,null,null,null,0,0,0,0,0,0]
[null,null,null,null,null,0,0,0,0,0,0]
[null,null,null,null,null,0,0,0,0,0,0]
[null,null,null,null,null,0,0,0,0,0,0]
[null,null,null,null,null,0,0,0,0,0,0]
[null,null,null,null,null,0,0,0,0,0,0]
[null,null,null,null,null,0,0,0,0,0,0]
[null,null,null,null,null,0,0,0,0,0,0]
[null,null,null,null,null,0,0,0,0,0,0]
[null,null,null,null,null,0,0,0,0,0,0]
[null,null,null,null,null,0,0,0,0,0,0]
[null,null,null,null,null,0,0,0,0,0,0]
[null,null,null,null,null,0,0,0,0,0,0]
[null,null,null,null,null,0,0,0,0,0,0]
[null,null,null,null,null,0,0,0,0,0,0]
[null,null,null,null,null,0,0,0,0,0,0]
[null,null,null,null,null,0,0,0,0,0,0]
[null,null,null,null,null,0,0,0,0,0,0]
[null,null,null,null,null,0,0,0,0,0,0]
[null,null,null,null,null,0,0,0,0,0,0]
[null,null,null,null,null,0,0,0,0,0,0]
[null,null,null,null,null,0,0,0,0,0,0]
[null,null,null,null,null,0,0,0,0,0,0]
[null,null,null,null,null,0,0,0,0,0,0]
[null,null,null,null,null,0,0,0,0,0,0]
[null,null,null,null,null,0,0,0,0,0,0]
[null,null,null,null,null,0,0,0,0,0,0]
[null,null,null,null,null,0,0,0,0,0,0]
[null,null,null,null,null,0,0,0,0,0,0]
[null,null,null,null,null,0,0,0,0,0,0]
[null,null,null,null,null,0,0,0,0,0,0]
[null,null,null,null,null,0,0,0,0,0,0]
[null,null,null,null,null,0,0,0,0,0,0]
[null,null,null,null,null,0,0,0,0,0,0]
[null,null,null,null,null,0,0,0,0,0,0]
[null,null,null,null,null,0,0,0,0,0,0]
[null,null,null,null,null,0,0,0,0,0,0]
[null,null,null,null,null,0,0,0,0,0,0]
[null,null,null,null,null,0,0,0,0,0,0]
[null,null,null,null,null,0,0,0,0,0,0]
[null,null,null,null,null,0,0,0,0,0,0]
[null,null,null,null,null,0,0,0,0,0,0]
[null,null,null,null,null,{"$f":"E258*M$1","v":0},{"$f":"F258*P$1","v":0},{"$f":"F258+G258","v":0},0,0,0]
[null,null,null,null,null,0,0,0,0,0,0]
[null,null,null,null,null,0,0,0,0,0,0]
[null,null,null,null,null,0,0,0,0,0,0]
[null,null,null,null,null,0,0,0,0,0,0]
[null,null,null,null,null,0,0,0,0,0,0]
[null,null,null,null,null,0,0,0,0,0,0]
[null,null,null,null,null,0,0,0,0,0,0]
[null,null,null,null,null,0,0,0,0,0,0]
[null,null,null,null,null,0,0,0,0,0,0]
[null,null,null,null,null,0,0,0,0,0,0]
[null,null,null,null,null,0,0,0,0,0,0]
[null,null,null,null,null,0,0,0,0,0,0]
[null,null,null,null,null,0,0,0,0,0,0]
[null,null,null,null,null,0,0,0,0,0,0]
[null,null,null,null,null,0,0,0,0,0,0]
[null,null,null,null,null,0,0,0,0,0,0]
[null,null,null,null,null,0,0,0,0,0,0]
[null,null,null,null,null,0,0,0,0,0,0]
[null,null,null,null,null,0,0,0,0,0,0]
[null,null,null,null,null,0,0,0,0,0,0]
[null,null,null,null,null,0,0,0,0,0,0]
[null,null,null,null,null,0,0,0,0,0,0]
[null,null,null,null,null,0,0,0,0,0,0]
[null,null,null,null,null,0,0,0,0,0,0]
[null,null,null,null,null,0,0,0,0,0,0]
[null,null,null,null,null,0,0,0,0,0,0]
[null,null,null,null,null,0,0,0,0,0,0]
[null,null,null,null,null,0,0,0,0,0,0]
[null,null,null,null,null,0,0,0,0,0,0]
[null,null,null,null,null,0,0,0,0,0,0]
[null,null,null,null,null,0,0,0,0,0,0]
[null,null,null,null,null,0,0,0,0,0,0]
[null,null,null,null,null,0,0,0,0,0,0]
[null,null,null,null,null,0,0,0,0,0,0]
[null,null,null,null,null,0,0,0,0,0,0]
[null,null,null,null,null,0,0,0,0,0,0]
[null,null,null,null,null,0,0,0,0,0,0]
[null,null,null,null,null,0,0,0,0,0,0]
[null,null,null,null,null,0,0,0,0,0,0]
[null,null,null,null,null,0,0,0,0,0,0]
[null,null,null,null,null,0,0,0,0,0,0]
[null,null,null,null,null,0,0,0,0,0,0]
[null,null,null,null,null,0,0,0,0,0,0]
[null,null,null,null,null,0,0,0,0,0,0]
[null,null,null,null,null,0,0,0,0,0,0]
[null,null,null,null,null,0,0,0,0,0,0]
[null,null,null,null,null,0,0,0,0,0,0]
[null,null,null,null,null,0,0,0,0,0,0]
[null,null,null,null,null,0,0,0,0,0,0]
[null,null,null,null,null,0,0,0,0,0,0]
[null,null,null,null,null,0,0,0,0,0,0]
[null,null,null,null,null,0,0,0,0,0,0]
[null,null,null,null,null,0,0,0,0,0,0]
[null,null,null,null,null,0,0,0,0,0,0]
[null,null,null,null,null,0,0,0,0,0,0]
[null,null,null,null,null,0,0,0,0,0,0]
[null,null,null,null,null,0,0,0,0,0,0]
[null,null,null,null,null,0,0,0,0,0,0]
[null,null,null,null,null,0,0,0,0,0,0]
[null,null,null,null,null,0,0,0,0,0,0]
[null,null,null,null,null,0,0,0,0,0,0]
[null,null,null,null,null,0,0,0,0,0,0]
[null,null,null,null,null,0,0,0,0,0,0]
[null,null,null,null,null,{"$f":"E322*M$1","v":0},{"$f":"F322*P$1","v":0},{"$f":"F322+G322","v":0},0,0,0]
[null,null,null,null,null,0,0,0,0,0,0]
[null,null,null,null,null,0,0,0,0,0,0]
[null,null,null,null,null,0,0,0,0,0,0]
[null,null,null,null,null,0,0,0,0,0,0]
[null,null,null,null,null,0,0,0,0,0,0]
[null,null,null,null,null,0,0,0,0,0,0]
[null,null,null,null,null,0,0,0,0,0,0]
[null,null,null,null,null,0,0,0,0,0,0]
[null,null,null,null,null,0,0,0,0,0,0]
[null,null,null,null,null,0,0,0,0,0,0]
[null,null,null,null,null,0,0,0,0,0,0]
[null,null,null,null,null,0,0,0,0,0,0]
[null,null,null,null,null,0,0,0,0,0,0]
[null,null,null,null,null,0,0,0,0,0,0]
[null,null,null,null,null,0,0,0,0,0,0]
[null,null,null,null,null,0,0,0,0,0,0]
[null,null,null,null,null,0,0,0,0,0,0]
[null,null,null,null,null,0,0,0,0,0,0]
[null,null,null,null,null,0,0,0,0,0,0]
[null,null,null,null,null,0,0,0,0,0,0]
[null,null,null,null,null,0,0,0,0,0,0]
[null,null,null,null,null,0,0,0,0,0,0]
[null,null,null,null,null,0,0,0,0,0,0]
[null,null,null,null,null,0,0,0,0,0,0]
[null,null,null,null,null,0,0,0,0,0,0]
[null,null,null,null,null,0,0,0,0,0,0]
[null,null,null,null,null,0,0,0,0,0,0]
[null,null,null,null,null,0,0,0,0,0,0]
[null,null,null,null,null,0,0,0,0,0,0]
[null,null,null,null,null,0,0,0,0,0,0]
[null,null,null,null,null,0,0,0,0,0,0]
[null,null,null,null,null,0,0,0,0,0,0]
[null,null,null,null,null,0,0,0,0,0,0]
[null,null,null,null,null,0,0,0,0,0,0]
[null,null,null,null,null,0,0,0,0,0,0]
[null,null,null,null,null,0,0,0,0,0,0]
[null,null,null,null,null,0,0,0,0,0,0]
[null,null,null,null,null,0,0,0,0,0,0]
[null,null,null,null,null,0,0,0,0,0,0]
[null,null,null,null,null,0,0,0,0,0,0]
[null,null,null,null,null,0,0,0,0,0,0]
[null,null,null,null,null,0,0,0,0,0,0]
[null,null,null,null,null,0,0,0,0,0,0]
[null,null,null,null,null,0,0,0,0,0,0]
[null,null,null,null,null,0,0,0,0,0,0]
[null,null,null,null,null,0,0,0,0,0,0]
[null,null,null,null,null,0,0,0,0,0,0]
[null,null,null,null,null,0,0,0,0,0,0]
[null,null,null,null,null,0,0,0,0,0,0]
[null,null,null,null,null,0,0,0,0,0,0]
[null,null,null,null,null,0,0,0,0,0,0]
[null,null,null,null,null,0,0,0,0,0,0]
[null,null,null,null,null,0,0,0,0,0,0]
[null,null,null,null,null,0,0,0,0,0,0]
[null,null,null,null,null,0,0,0,0,0,0]
[null,null,null,null,null,0,0,0,0,0,0]
[null,null,null,null,null,0,0,0,0,0,0]
[null,null,null,null,null,0,0,0,0,0,0]
[null,null,null,null,null,0,0,0,0,0,0]
[null,null,null,null,null,0,0,0,0,0,0]
[null,null,null,null,null,0,0,0,0,0,0]
[null,null,null,null,null,0,0,0,0,0,0]
[null,null,null,null,null,0,0,0,0,0,0]
[null,null,null,null,null,{"$f":"E386*M$1","v":0},{"$f":"F386*P$1","v":0},{"$f":"F386+G386","v":0},0,0,0]
[null,null,null,null,null,0,0,0,0,0,0]
[null,null,null,null,null,0,0,0,0,0,0]
[null,null,null,null,null,0,0,0,0,0,0]
[null,null,null,null,null,0,0,0,0,0,0]
[null,null,null,null,null,0,0,0,0,0,0]
[null,null,null,null,null,0,0,0,0,0,0]
[null,null,null,null,null,0,0,0,0,0,0]
[null,null,null,null,null,0,0,0,0,0,0]
[null,null,null,null,null,0,0,0,0,0,0]
[null,null,null,null,null,0,0,0,0,0,0]
[null,null,null,null,null,0,0,0,0,0,0]
[null,null,null,null,null,0,0,0,0,0,0]
[null,null,null,null,null,0,0,0,0,0,0]
[null,null,null,null,null,0,0,0,0,0,0]
[null,null,null,null,null,0,0,0,0,0,0]
[null,null,null,null,null,0,0,0,0,0,0]
[null,null,null,null,null,0,0,0,0,0,0]
[null,null,null,null,null,0,0,0,0,0,0]
[null,null,null,null,null,0,0,0,0,0,0]
[null,null,null,null,null,0,0,0,0,0,0]
[null,null,null,null,null,0,0,0,0,0,0]
[null,null,null,null,null,0,0,0,0,0,0]
[null,null,null,null,null,0,0,0,0,0,0]
[null,null,null,null,null,0,0,0,0,0,0]
[null,null,null,null,null,0,0,0,0,0,0]
[null,null,null,null,null,0,0,0,0,0,0]
[null,null,null,null,null,0,0,0,0,0,0]
[null,null,null,null,null,0,0,0,0,0,0]
[null,null,null,null,null,0,0,0,0,0,0]
[null,null,null,null,null,0,0,0,0,0,0]
[null,null,null,null,null,0,0,0,0,0,0]
[null,null,null,null,null,0,0,0,0,0,0]
[null,null,null,null,null,0,0,0,0,0,0]
[null,null,null,null,null,0,0,0,0,0,0]
[null,null,null,null,null,0,0,0,0,0,0]
[null,null,null,null,null,0,0,0,0,0,0]
[null,null,null,null,null,0,0,0,0,0,0]
[null,null,null,null,null,0,0,0,0,0,0]
[null,null,null,null,null,0,0,0,0,0,0]
[null,null,null,null,null,0,0,0,0,0,0]
[null,null,null,null,null,0,0,0,0,0,0]
[null,null,null,null,null,0,0,0,0,0,0]
[null,null,null,null,null,0,0,0,0,0,0]
[null,null,null,null,null,0,0,0,0,0,0]
[null,null,null,null,null,0,0,0,0,0,0]
[null,null,null,null,null,0,0,0,0,0,0]
[null,null,null,null,null,0,0,0,0,0,0]
[null,null,null,null,null,0,0,0,0,0,0]
[null,null,null,null,null,0,0,0,0,0,0]
[null,null,null,null,null,0,0,0,0,0,0]
[null,null,null,null,null,0,0,0,0,0,0]
[null,null,null,null,null,0,0,0,0,0,0]
[null,null,null,null,null,0,0,0,0,0,0]
[null,null,null,null,null,0,0,0,0,0,0]
[null,null,null,null,null,0,0,0,0,0,0]
[null,null,null,null,null,0,0,0,0,0,0]
[null,null,null,null,null,0,0,0,0,0,0]
[null,null,null,null,null,0,0,0,0,0,0]
[null,null,null,null,null,0,0,0,0,0,0]
[null,null,null,null,null,0,0,0,0,0,0]
[null,null,null,null,null,0,0,0,0,0,0]
[null,null,null,null,null,0,0,0,0,0,0]
[null,null,null,null,null,0,0,0,0,0,0]
[null,null,null,null,null,{"$f":"E450*M$1","v":0},{"$f":"F450*P$1","v":0},{"$f":"F450+G450","v":0},0,0,0]
[null,null,null,null,null,0,0,0,0,0,0]
[null,null,null,null,null,0,0,0,0,0,0]
[null,null,null,null,null,0,0,0,0,0,0]
[null,null,null,null,null,0,0,0,0,0,0]
[null,null,null,null,null,0,0,0,0,0,0]
[null,null,null,null,null,0,0,0,0,0,0]
[null,null,null,null,null,0,0,0,0,0,0]
[null,null,null,null,null,0,0,0,0,0,0]
[null,null,null,null,null,0,0,0,0,0,0]
[null,null,null,null,null,0,0,0,0,0,0]
[null,null,null,null,null,0,0,0,0,0,0]
[null,null,null,null,null,0,0,0,0,0,0]
[null,null,null,null,null,0,0,0,0,0,0]
[null,null,null,null,null,0,0,0,0,0,0]
[null,null,null,null,null,0,0,0,0,0,0]
[null,null,null,null,null,0,0,0,0,0,0]
[null,null,null,null,null,0,0,0,0,0,0]
[null,null,null,null,null,0,0,0,0,0,0]
[null,null,null,null,null,0,0,0,0,0,0]
[null,null,null,null,null,0,0,0,0,0,0]
[null,null,null,null,null,0,0,0,0,0,0]
[null,null,null,null,null,0,0,0,0,0,0]
[null,null,null,null,null,0,0,0,0,0,0]
[null,null,null,null,null,0,0,0,0,0,0]
[null,null,null,null,null,0,0,0,0,0,0]
[null,null,null,null,null,0,0,0,0,0,0]
[null,null,null,null,null,0,0,0,0,0,0]
[null,null,null,null,null,0,0,0,0,0,0]
[null,null,null,null,null,0,0,0,0,0,0]
[null,null,null,null,null,0,0,0,0,0,0]
[null,null,null,null,null,0,0,0,0,0,0]
[null,null,null,null,null,0,0,0,0,0,0]
[null,null,null,null,null,0,0,0,0,0,0]
[null,null,null,null,null,0,0,0,0,0,0]
[null,null,null,null,null,0,0,0,0,0,0]
[null,null,null,null,null,0,0,0,0,0,0]
[null,null,null,null,null,0,0,0,0,0,0]
[null,null,null,null,null,0,0,0,0,0,0]
[null,null,null,null,null,0,0,0,0,1,1]
[null,null,null,null,null,0,0,0,0,0,0]
[null,null,null,null,null,0,0,0,0,0,0]
[null,null,null,null,null,0,0,0,0,0,0]
[null,null,null,null,null,0,0,0,0,0,0]
[null,null,null,null,null,0,0,0,0,0,0]
[null,null,null,null,null,0,0,0,0,0,0]
[null,null,null,null,null,0,0,0,0,0,0]
[null,null,null,null,null,0,0,0,0,0,0]
[null,null,null,null,null,0,0,0,0,0,0]
[null,null,null,null,null,0,0,0,0,0,0]
[null,null,null,null,null,0,0,0,0,0,0]

{"sheet":"Лист2","index":1,"n_rows":500,"n_cols":25,"rows_kept":500,"cut":false,"hidden":false,"merged":[]}
["Категория","Название","Артикул","Ссылка","Цена, р.","Цена, тг.","Маржа","Цена",{"$f":"Склад!$I$1","v":"Склад"},"+","-","Курс",3.49,"%",40,{"$f":"O1/100","v":0.4},null,null,null,null,null,null,"+","-"]
["Зеркало","ТРЕНСУМ","245.244.85","http://www.ikea.com/ru/ru/catalog/products/24524485/",299,{"$f":"E2*M$1","v":1043.51},{"$f":"F2*P$1","v":417.404},{"$f":"F2+G2","v":1460.914},4,4,0,null,null,null,null,null,null,null,null,null,null,null,6,6,7]
["Часы","КЛОККИС","802.770.04","http://www.ikea.com/ru/ru/catalog/products/80277004/?query=%D0%BA%D0%BB%D0%BE%D0%BA%D0%BA%D0%B8%D1%81",299,1043.51,417.404,1460.914,0,7,7]
["Игрушка","МУЛА","600.619.67","http://www.ikea.com/ru/ru/catalog/products/60061967/",299,1043.51,417.404,1460.914,3,3,0]
[null,null,null,null,null,0,0,0,0,0,0]
[null,null,null,null,null,0,0,0,0,0,0]
[null,null,null,null,null,0,0,0,0,0,0]
[null,null,null,null,null,0,0,0,0,0,0]
[null,null,null,null,null,0,0,0,0,0,0]
[null,null,null,null,null,0,0,0,0,0,0]
[null,null,null,null,null,0,0,0,0,0,0]
[null,null,null,null,null,0,0,0,0,0,0]
[null,null,null,null,null,0,0,0,0,0,0]
[null,null,null,null,null,0,0,0,0,0,0]
[null,null,null,null,null,0,0,0,0,0,0]
[null,null,null,null,null,0,0,0,0,0,0]
[null,null,null,null,null,0,0,0,0,0,0]
[null,null,null,null,null,0,0,0,0,0,0]
[null,null,null,null,null,0,0,0,0,0,0]
[null,null,null,null,null,0,0,0,0,0,0]
[null,null,null,null,null,0,0,0,0,0,0]
[null,null,null,null,null,0,0,0,0,0,0]
[null,null,null,null,null,0,0,0,0,0,0]
[null,null,null,null,null,0,0,0,0,0,0]
[null,null,null,null,null,0,0,0,0,0,0]
[null,null,null,null,null,0,0,0,0,0,0]
[null,null,null,null,null,0,0,0,0,0,0]
[null,null,null,null,null,0,0,0,0,0,0]
[null,null,null,null,null,0,0,0,0,0,0]
[null,null,null,null,null,0,0,0,0,0,0]
[null,null,null,null,null,0,0,0,0,0,0]
[null,null,null,null,null,0,0,0,0,0,0]
[null,null,null,null,null,0,0,0,0,0,0]
[null,null,null,null,null,0,0,0,0,0,0]
[null,null,null,null,null,0,0,0,0,0,0]
[null,null,null,null,null,0,0,0,0,0,0]
[null,null,null,null,null,0,0,0,0,0,0]
[null,null,null,null,null,0,0,0,0,0,0]
[null,null,null,null,null,0,0,0,0,0,0]
[null,null,null,null,null,0,0,0,0,0,0]
[null,null,null,null,null,0,0,0,0,0,0]
[null,null,null,null,null,0,0,0,0,0,0]
[null,null,null,null,null,0,0,0,0,0,0]
[null,null,null,null,null,0,0,0,0,0,0]
[null,null,null,null,null,0,0,0,0,0,0]
[null,null,null,null,null,0,0,0,0,0,0]
[null,null,null,null,null,0,0,0,0,0,0]
[null,null,null,null,null,0,0,0,0,0,0]
[null,null,null,null,null,0,0,0,0,0,0]
[null,null,null,null,null,0,0,0,0,0,0]
[null,null,null,null,null,0,0,0,0,0,0]
[null,null,null,null,null,0,0,0,0,0,0]
[null,null,null,null,null,0,0,0,0,0,0]
[null,null,null,null,null,0,0,0,0,0,0]
[null,null,null,null,null,0,0,0,0,0,0]
[null,null,null,null,null,0,0,0,0,0,0]
[null,null,null,null,null,0,0,0,0,0,0]
[null,null,null,null,null,0,0,0,0,0,0]
[null,null,null,null,null,0,0,0,0,0,0]
[null,null,null,null,null,0,0,0,0,0,0]
[null,null,null,null,null,0,0,0,0,0,0]
[null,null,null,null,null,0,0,0,0,0,0]
[null,null,null,null,null,0,0,0,0,0,0]
[null,null,null,null,null,0,0,0,0,0,0]
[null,null,null,null,null,0,0,0,0,0,0]
[null,null,null,null,null,{"$f":"E66*M$1","v":0},{"$f":"F66*P$1","v":0},{"$f":"F66+G66","v":0},0,0,0]
[null,null,null,null,null,0,0,0,0,0,0]
[null,null,null,null,null,0,0,0,0,0,0]
[null,null,null,null,null,0,0,0,0,0,0]
[null,null,null,null,null,0,0,0,0,0,0]
[null,null,null,null,null,0,0,0,0,0,0]
[null,null,null,null,null,0,0,0,0,0,0]
[null,null,null,null,null,0,0,0,0,0,0]
[null,null,null,null,null,0,0,0,0,0,0]
[null,null,null,null,null,0,0,0,0,0,0]
[null,null,null,null,null,0,0,0,0,0,0]
[null,null,null,null,null,0,0,0,0,0,0]
[null,null,null,null,null,0,0,0,0,0,0]
[null,null,null,null,null,0,0,0,0,0,0]
[null,null,null,null,null,0,0,0,0,0,0]
[null,null,null,null,null,0,0,0,0,0,0]
[null,null,null,null,null,0,0,0,0,0,0]
[null,null,null,null,null,0,0,0,0,0,0]
[null,null,null,null,null,0,0,0,0,0,0]
[null,null,null,null,null,0,0,0,0,0,0]
[null,null,null,null,null,0,0,0,0,0,0]
[null,null,null,null,null,0,0,0,0,0,0]
[null,null,null,null,null,0,0,0,0,0,0]
[null,null,null,null,null,0,0,0,0,0,0]
[null,null,null,null,null,0,0,0,0,0,0]
[null,null,null,null,null,0,0,0,0,0,0]
[null,null,null,null,null,0,0,0,0,0,0]
[null,null,null,null,null,0,0,0,0,0,0]
[null,null,null,null,null,0,0,0,0,0,0]
[null,null,null,null,null,0,0,0,0,0,0]
[null,null,null,null,null,0,0,0,0,0,0]
[null,null,null,null,null,0,0,0,0,0,0]
[null,null,null,null,null,0,0,0,0,0,0]
[null,null,null,null,null,0,0,0,0,0,0]
[null,null,null,null,null,0,0,0,0,0,0]
[null,null,null,null,null,0,0,0,0,0,0]
[null,null,null,null,null,0,0,0,0,0,0]
[null,null,null,null,null,0,0,0,0,0,0]
[null,null,null,null,null,0,0,0,0,0,0]
[null,null,null,null,null,0,0,0,0,0,0]
[null,null,null,null,null,0,0,0,0,0,0]
[null,null,null,null,null,0,0,0,0,0,0]
[null,null,null,null,null,0,0,0,0,0,0]
[null,null,null,null,null,0,0,0,0,0,0]
[null,null,null,null,null,0,0,0,0,0,0]
[null,null,null,null,null,0,0,0,0,0,0]
[null,null,null,null,null,0,0,0,0,0,0]
[null,null,null,null,null,0,0,0,0,0,0]
[null,null,null,null,null,0,0,0,0,0,0]
[null,null,null,null,null,0,0,0,0,0,0]
[null,null,null,null,null,0,0,0,0,0,0]
[null,null,null,null,null,0,0,0,0,0,0]
[null,null,null,null,null,0,0,0,0,0,0]
[null,null,null,null,null,0,0,0,0,0,0]
[null,null,null,null,null,0,0,0,0,0,0]
[null,null,null,null,null,0,0,0,0,0,0]
[null,null,null,null,null,0,0,0,0,0,0]
[null,null,null,null,null,0,0,0,0,0,0]
[null,null,null,null,null,0,0,0,0,0,0]
[null,null,null,null,null,0,0,0,0,0,0]
[null,null,null,null,null,0,0,0,0,0,0]
[null,null,null,null,null,0,0,0,0,0,0]
[null,null,null,null,null,0,0,0,0,0,0]
[null,null,null,null,null,0,0,0,0,0,0]
[null,null,null,null,null,{"$f":"E130*M$1","v":0},{"$f":"F130*P$1","v":0},{"$f":"F130+G130","v":0},0,0,0]
[null,null,null,null,null,0,0,0,0,0,0]
[null,null,null,null,null,0,0,0,0,0,0]
[null,null,null,null,null,0,0,0,0,0,0]
[null,null,null,null,null,0,0,0,0,0,0]
[null,null,null,null,null,0,0,0,0,0,0]
[null,null,null,null,null,0,0,0,0,0,0]
[null,null,null,null,null,0,0,0,0,0,0]
[null,null,null,null,null,0,0,0,0,0,0]
[null,null,null,null,null,0,0,0,0,0,0]
[null,null,null,null,null,0,0,0,0,0,0]
[null,null,null,null,null,0,0,0,0,0,0]
[null,null,null,null,null,0,0,0,0,0,0]
[null,null,null,null,null,0,0,0,0,0,0]
[null,null,null,null,null,0,0,0,0,0,0]
[null,null,null,null,null,0,0,0,0,0,0]
[null,null,null,null,null,0,0,0,0,0,0]
[null,null,null,null,null,0,0,0,0,0,0]
[null,null,null,null,null,0,0,0,0,0,0]
[null,null,null,null,null,0,0,0,0,0,0]
[null,null,null,null,null,0,0,0,0,0,0]
[null,null,null,null,null,0,0,0,0,0,0]
[null,null,null,null,null,0,0,0,0,0,0]
[null,null,null,null,null,0,0,0,0,0,0]
[null,null,null,null,null,0,0,0,0,0,0]
[null,null,null,null,null,0,0,0,0,0,0]
[null,null,null,null,null,0,0,0,0,0,0]
[null,null,null,null,null,0,0,0,0,0,0]
[null,null,null,null,null,0,0,0,0,0,0]
[null,null,null,null,null,0,0,0,0,0,0]
[null,null,null,null,null,0,0,0,0,0,0]
[null,null,null,null,null,0,0,0,0,0,0]
[null,null,null,null,null,0,0,0,0,0,0]
[null,null,null,null,null,0,0,0,0,0,0]
[null,null,null,null,null,0,0,0,0,0,0]
[null,null,null,null,null,0,0,0,0,0,0]
[null,null,null,null,null,0,0,0,0,0,0]
[null,null,null,null,null,0,0,0,0,0,0]
[null,null,null,null,null,0,0,0,0,0,0]
[null,null,null,null,null,0,0,0,0,0,0]
[null,null,null,null,null,0,0,0,0,0,0]
[null,null,null,null,null,0,0,0,0,0,0]
[null,null,null,null,null,0,0,0,0,0,0]
[null,null,null,null,null,0,0,0,0,0,0]
[null,null,null,null,null,0,0,0,0,0,0]
[null,null,null,null,null,0,0,0,0,0,0]
[null,null,null,null,null,0,0,0,0,0,0]
[null,null,null,null,null,0,0,0,0,0,0]
[null,null,null,null,null,0,0,0,0,0,0]
[null,null,null,null,null,0,0,0,0,0,0]
[null,null,null,null,null,0,0,0,0,0,0]
[null,null,null,null,null,0,0,0,0,0,0]
[null,null,null,null,null,0,0,0,0,0,0]
[null,null,null,null,null,0,0,0,0,0,0]
[null,null,null,null,null,0,0,0,0,0,0]
[null,null,null,null,null,0,0,0,0,0,0]
[null,null,null,null,null,0,0,0,0,0,0]
[null,null,null,null,null,0,0,0,0,0,0]
[null,null,null,null,null,0,0,0,0,0,0]
[null,null,null,null,null,0,0,0,0,0,0]
[null,null,null,null,null,0,0,0,0,0,0]
[null,null,null,null,null,0,0,0,0,0,0]
[null,null,null,null,null,0,0,0,0,0,0]
[null,null,null,null,null,0,0,0,0,0,0]
[null,null,null,null,null,{"$f":"E194*M$1","v":0},{"$f":"F194*P$1","v":0},{"$f":"F194+G194","v":0},0,0,0]
[null,null,null,null,null,0,0,0,0,0,0]
[null,null,null,null,null,0,0,0,0,0,0]
[null,null,null,null,null,0,0,0,0,0,0]
[null,null,null,null,null,0,0,0,0,0,0]
[null,null,null,null,null,0,0,0,0,0,0]
[null,null,null,null,null,0,0,0,0,0,0]
[null,null,null,null,null,0,0,0,0,0,0]
[null,null,null,null,null,0,0,0,0,0,0]
[null,null,null,null,null,0,0,0,0,0,0]
[null,null,null,null,null,0,0,0,0,0,0]
[null,null,null,null,null,0,0,0,0,0,0]
[null,null,null,null,null,0,0,0,0,0,0]
[null,null,null,null,null,0,0,0,0,0,0]
[null,null,null,null,null,0,0,0,0,0,0]
[null,null,null,null,null,0,0,0,0,0,0]
[null,null,null,null,null,0,0,0,0,0,0]
[null,null,null,null,null,0,0,0,0,0,0]
[null,null,null,null,null,0,0,0,0,0,0]
[null,null,null,null,null,0,0,0,0,0,0]
[null,null,null,null,null,0,0,0,0,0,0]
[null,null,null,null,null,0,0,0,0,0,0]
[null,null,null,null,null,0,0,0,0,0,0]
[null,null,null,null,null,0,0,0,0,0,0]
[null,null,null,null,null,0,0,0,0,0,0]
[null,null,null,null,null,0,0,0,0,0,0]
[null,null,null,null,null,0,0,0,0,0,0]
[null,null,null,null,null,0,0,0,0,0,0]
[null,null,null,null,null,0,0,0,0,0,0]
[null,null,null,null,null,0,0,0,0,0,0]
[null,null,null,null,null,0,0,0,0,0,0]
[null,null,null,null,null,0,0,0,0,0,0]
[null,null,null,null,null,0,0,0,0,0,0]
[null,null,null,null,null,0,0,0,0,0,0]
[null,null,null,null,null,0,0,0,0,0,0]
[null,null,null,null,null,0,0,0,0,0,0]
[null,null,null,null,null,0,0,0,0,0,0]
[null,null,null,null,null,0,0,0,0,0,0]
[null,null,null,null,null,0,0,0,0,0,0]
[null,null,null,null,null,0,0,0,0,0,0]
[null,null,null,null,null,0,0,0,0,0,0]
[null,null,null,null,null,0,0,0,0,0,0]
[null,null,null,null,null,0,0,0,0,0,0]
[null,null,null,null,null,0,0,0,0,0,0]
[null,null,null,null,null,0,0,0,0,0,0]
[null,null,null,null,null,0,0,0,0,0,0]
[null,null,null,null,null,0,0,0,0,0,0]
[null,null,null,null,null,0,0,0,0,0,0]
[null,null,null,null,null,0,0,0,0,0,0]
[null,null,null,null,null,0,0,0,0,0,0]
[null,null,null,null,null,0,0,0,0,0,0]
[null,null,null,null,null,0,0,0,0,0,0]
[null,null,null,null,null,0,0,0,0,0,0]
[null,null,null,null,null,0,0,0,0,0,0]
[null,null,null,null,null,0,0,0,0,0,0]
[null,null,null,null,null,0,0,0,0,0,0]
[null,null,null,null,null,0,0,0,0,0,0]
[null,null,null,null,null,0,0,0,0,0,0]
[null,null,null,null,null,0,0,0,0,0,0]
[null,null,null,null,null,0,0,0,0,0,0]
[null,null,null,null,null,0,0,0,0,0,0]
[null,null,null,null,null,0,0,0,0,0,0]
[null,null,null,null,null,0,0,0,0,0,0]
[null,null,null,null,null,0,0,0,0,0,0]
[null,null,null,null,null,{"$f":"E258*M$1","v":0},{"$f":"F258*P$1","v":0},{"$f":"F258+G258","v":0},0,0,0]
[null,null,null,null,null,0,0,0,0,0,0]
[null,null,null,null,null,0,0,0,0,0,0]
[null,null,null,null,null,0,0,0,0,0,0]
[null,null,null,null,null,0,0,0,0,0,0]
[null,null,null,null,null,0,0,0,0,0,0]
[null,null,null,null,null,0,0,0,0,0,0]
[null,null,null,null,null,0,0,0,0,0,0]
[null,null,null,null,null,0,0,0,0,0,0]
[null,null,null,null,null,0,0,0,0,0,0]
[null,null,null,null,null,0,0,0,0,0,0]
[null,null,null,null,null,0,0,0,0,0,0]
[null,null,null,null,null,0,0,0,0,0,0]
[null,null,null,null,null,0,0,0,0,0,0]
[null,null,null,null,null,0,0,0,0,0,0]
[null,null,null,null,null,0,0,0,0,0,0]
[null,null,null,null,null,0,0,0,0,0,0]
[null,null,null,null,null,0,0,0,0,0,0]
[null,null,null,null,null,0,0,0,0,0,0]
[null,null,null,null,null,0,0,0,0,0,0]
[null,null,null,null,null,0,0,0,0,0,0]
[null,null,null,null,null,0,0,0,0,0,0]
[null,null,null,null,null,0,0,0,0,0,0]
[null,null,null,null,null,0,0,0,0,0,0]
[null,null,null,null,null,0,0,0,0,0,0]
[null,null,null,null,null,0,0,0,0,0,0]
[null,null,null,null,null,0,0,0,0,0,0]
[null,null,null,null,null,0,0,0,0,0,0]
[null,null,null,null,null,0,0,0,0,0,0]
[null,null,null,null,null,0,0,0,0,0,0]
[null,null,null,null,null,0,0,0,0,0,0]
[null,null,null,null,null,0,0,0,0,0,0]
[null,null,null,null,null,0,0,0,0,0,0]
[null,null,null,null,null,0,0,0,0,0,0]
[null,null,null,null,null,0,0,0,0,0,0]
[null,null,null,null,null,0,0,0,0,0,0]
[null,null,null,null,null,0,0,0,0,0,0]
[null,null,null,null,null,0,0,0,0,0,0]
[null,null,null,null,null,0,0,0,0,0,0]
[null,null,null,null,null,0,0,0,0,0,0]
[null,null,null,null,null,0,0,0,0,0,0]
[null,null,null,null,null,0,0,0,0,0,0]
[null,null,null,null,null,0,0,0,0,0,0]
[null,null,null,null,null,0,0,0,0,0,0]
[null,null,null,null,null,0,0,0,0,0,0]
[null,null,null,null,null,0,0,0,0,0,0]
[null,null,null,null,null,0,0,0,0,0,0]
[null,null,null,null,null,0,0,0,0,0,0]
[null,null,null,null,null,0,0,0,0,0,0]
[null,null,null,null,null,0,0,0,0,0,0]
[null,null,null,null,null,0,0,0,0,0,0]
[null,null,null,null,null,0,0,0,0,0,0]
[null,null,null,null,null,0,0,0,0,0,0]
[null,null,null,null,null,0,0,0,0,0,0]
[null,null,null,null,null,0,0,0,0,0,0]
[null,null,null,null,null,0,0,0,0,0,0]
[null,null,null,null,null,0,0,0,0,0,0]
[null,null,null,null,null,0,0,0,0,0,0]
[null,null,null,null,null,0,0,0,0,0,0]
[null,null,null,null,null,0,0,0,0,0,0]
[null,null,null,null,null,0,0,0,0,0,0]
[null,null,null,null,null,0,0,0,0,0,0]
[null,null,null,null,null,0,0,0,0,0,0]
[null,null,null,null,null,0,0,0,0,0,0]
[null,null,null,null,null,{"$f":"E322*M$1","v":0},{"$f":"F322*P$1","v":0},{"$f":"F322+G322","v":0},0,0,0]
[null,null,null,null,null,0,0,0,0,0,0]
[null,null,null,null,null,0,0,0,0,0,0]
[null,null,null,null,null,0,0,0,0,0,0]
[null,null,null,null,null,0,0,0,0,0,0]
[null,null,null,null,null,0,0,0,0,0,0]
[null,null,null,null,null,0,0,0,0,0,0]
[null,null,null,null,null,0,0,0,0,0,0]
[null,null,null,null,null,0,0,0,0,0,0]
[null,null,null,null,null,0,0,0,0,0,0]
[null,null,null,null,null,0,0,0,0,0,0]
[null,null,null,null,null,0,0,0,0,0,0]
[null,null,null,null,null,0,0,0,0,0,0]
[null,null,null,null,null,0,0,0,0,0,0]
[null,null,null,null,null,0,0,0,0,0,0]
[null,null,null,null,null,0,0,0,0,0,0]
[null,null,null,null,null,0,0,0,0,0,0]
[null,null,null,null,null,0,0,0,0,0,0]
[null,null,null,null,null,0,0,0,0,0,0]
[null,null,null,null,null,0,0,0,0,0,0]
[null,null,null,null,null,0,0,0,0,0,0]
[null,null,null,null,null,0,0,0,0,0,0]
[null,null,null,null,null,0,0,0,0,0,0]
[null,null,null,null,null,0,0,0,0,0,0]
[null,null,null,null,null,0,0,0,0,0,0]
[null,null,null,null,null,0,0,0,0,0,0]
[null,null,null,null,null,0,0,0,0,0,0]
[null,null,null,null,null,0,0,0,0,0,0]
[null,null,null,null,null,0,0,0,0,0,0]
[null,null,null,null,null,0,0,0,0,0,0]
[null,null,null,null,null,0,0,0,0,0,0]
[null,null,null,null,null,0,0,0,0,0,0]
[null,null,null,null,null,0,0,0,0,0,0]
[null,null,null,null,null,0,0,0,0,0,0]
[null,null,null,null,null,0,0,0,0,0,0]
[null,null,null,null,null,0,0,0,0,0,0]
[null,null,null,null,null,0,0,0,0,0,0]
[null,null,null,null,null,0,0,0,0,0,0]
[null,null,null,null,null,0,0,0,0,0,0]
[null,null,null,null,null,0,0,0,0,0,0]
[null,null,null,null,null,0,0,0,0,0,0]
[null,null,null,null,null,0,0,0,0,0,0]
[null,null,null,null,null,0,0,0,0,0,0]
[null,null,null,null,null,0,0,0,0,0,0]
[null,null,null,null,null,0,0,0,0,0,0]
[null,null,null,null,null,0,0,0,0,0,0]
[null,null,null,null,null,0,0,0,0,0,0]
[null,null,null,null,null,0,0,0,0,0,0]
[null,null,null,null,null,0,0,0,0,0,0]
[null,null,null,null,null,0,0,0,0,0,0]
[null,null,null,null,null,0,0,0,0,0,0]
[null,null,null,null,null,0,0,0,0,0,0]
[null,null,null,null,null,0,0,0,0,0,0]
[null,null,null,null,null,0,0,0,0,0,0]
[null,null,null,null,null,0,0,0,0,0,0]
[null,null,null,null,null,0,0,0,0,0,0]
[null,null,null,null,null,0,0,0,0,0,0]
[null,null,null,null,null,0,0,0,0,0,0]
[null,null,null,null,null,0,0,0,0,0,0]
[null,null,null,null,null,0,0,0,0,0,0]
[null,null,null,null,null,0,0,0,0,0,0]
[null,null,null,null,null,0,0,0,0,0,0]
[null,null,null,null,null,0,0,0,0,0,0]
[null,null,null,null,null,0,0,0,0,0,0]
[null,null,null,null,null,{"$f":"E386*M$1","v":0},{"$f":"F386*P$1","v":0},{"$f":"F386+G386","v":0},0,0,0]
[null,null,null,null,null,0,0,0,0,0,0]
[null,null,null,null,null,0,0,0,0,0,0]
[null,null,null,null,null,0,0,0,0,0,0]
[null,null,null,null,null,0,0,0,0,0,0]
[null,null,null,null,null,0,0,0,0,0,0]
[null,null,null,null,null,0,0,0,0,0,0]
[null,null,null,null,null,0,0,0,0,0,0]
[null,null,null,null,null,0,0,0,0,0,0]
[null,null,null,null,null,0,0,0,0,0,0]
[null,null,null,null,null,0,0,0,0,0,0]
[null,null,null,null,null,0,0,0,0,0,0]
[null,null,null,null,null,0,0,0,0,0,0]
[null,null,null,null,null,0,0,0,0,0,0]
[null,null,null,null,null,0,0,0,0,0,0]
[null,null,null,null,null,0,0,0,0,0,0]
[null,null,null,null,null,0,0,0,0,0,0]
[null,null,null,null,null,0,0,0,0,0,0]
[null,null,null,null,null,0,0,0,0,0,0]
[null,null,null,null,null,0,0,0,0,0,0]
[null,null,null,null,null,0,0,0,0,0,0]
[null,null,null,null,null,0,0,0,0,0,0]
[null,null,null,null,null,0,0,0,0,0,0]
[null,null,null,null,null,0,0,0,0,0,0]
[null,null,null,null,null,0,0,0,0,0,0]
[null,null,null,null,null,0,0,0,0,0,0]
[null,null,null,null,null,0,0,0,0,0,0]
[null,null,null,null,null,0,0,0,0,0,0]
[null,null,null,null,null,0,0,0,0,0,0]
[null,null,null,null,null,0,0,0,0,0,0]
[null,null,null,null,null,0,0,0,0,0,0]
[null,null,null,null,null,0,0,0,0,0,0]
[null,null,null,null,null,0,0,0,0,0,0]
[null,null,null,null,null,0,0,0,0,0,0]
[null,null,null,null,null,0,0,0,0,0,0]
[null,null,null,null,null,0,0,0,0,0,0]
[null,null,null,null,null,0,0,0,0,0,0]
[null,null,null,null,null,0,0,0,0,0,0]
[null,null,null,null,null,0,0,0,0,0,0]
[null,null,null,null,null,0,0,0,0,0,0]
[null,null,null,null,null,0,0,0,0,0,0]
[null,null,null,null,null,0,0,0,0,0,0]
[null,null,null,null,null,0,0,0,0,0,0]
[null,null,null,null,null,0,0,0,0,0,0]
[null,null,null,null,null,0,0,0,0,0,0]
[null,null,null,null,null,0,0,0,0,0,0]
[null,null,null,null,null,0,0,0,0,0,0]
[null,null,null,null,null,0,0,0,0,0,0]
[null,null,null,null,null,0,0,0,0,0,0]
[null,null,null,null,null,0,0,0,0,0,0]
[null,null,null,null,null,0,0,0,0,0,0]
[null,null,null,null,null,0,0,0,0,0,0]
[null,null,null,null,null,0,0,0,0,0,0]
[null,null,null,null,null,0,0,0,0,0,0]
[null,null,null,null,null,0,0,0,0,0,0]
[null,null,null,null,null,0,0,0,0,0,0]
[null,null,null,null,null,0,0,0,0,0,0]
[null,null,null,null,null,0,0,0,0,0,0]
[null,null,null,null,null,0,0,0,0,0,0]
[null,null,null,null,null,0,0,0,0,0,0]
[null,null,null,null,null,0,0,0,0,0,0]
[null,null,null,null,null,0,0,0,0,0,0]
[null,null,null,null,null,0,0,0,0,0,0]
[null,null,null,null,null,0,0,0,0,0,0]
[null,null,null,null,null,{"$f":"E450*M$1","v":0},{"$f":"F450*P$1","v":0},{"$f":"F450+G450","v":0},0,0,0]
[null,null,null,null,null,0,0,0,0,0,0]
[null,null,null,null,null,0,0,0,0,0,0]
[null,null,null,null,null,0,0,0,0,0,0]
[null,null,null,null,null,0,0,0,0,0,0]
[null,null,null,null,null,0,0,0,0,0,0]
[null,null,null,null,null,0,0,0,0,0,0]
[null,null,null,null,null,0,0,0,0,0,0]
[null,null,null,null,null,0,0,0,0,0,0]
[null,null,null,null,null,0,0,0,0,0,0]
[null,null,null,null,null,0,0,0,0,0,0]
[null,null,null,null,null,0,0,0,0,0,0]
[null,null,null,null,null,0,0,0,0,0,0]
[null,null,null,null,null,0,0,0,0,0,0]
[null,null,null,null,null,0,0,0,0,0,0]
[null,null,null,null,null,0,0,0,0,0,0]
[null,null,null,null,null,0,0,0,0,0,0]
[null,null,null,null,null,0,0,0,0,0,0]
[null,null,null,null,null,0,0,0,0,0,0]
[null,null,null,null,null,0,0,0,0,0,0]
[null,null,null,null,null,0,0,0,0,0,0]
[null,null,null,null,null,0,0,0,0,0,0]
[null,null,null,null,null,0,0,0,0,0,0]
[null,null,null,null,null,0,0,0,0,0,0]
[null,null,null,null,null,0,0,0,0,0,0]
[null,null,null,null,null,0,0,0,0,0,0]
[null,null,null,null,null,0,0,0,0,0,0]
[null,null,null,null,null,0,0,0,0,0,0]
[null,null,null,null,null,0,0,0,0,0,0]
[null,null,null,null,null,0,0,0,0,0,0]
[null,null,null,null,null,0,0,0,0,0,0]
[null,null,null,null,null,0,0,0,0,0,0]
[null,null,null,null,null,0,0,0,0,0,0]
[null,null,null,null,null,0,0,0,0,0,0]
[null,null,null,null,null,0,0,0,0,0,0]
[null,null,null,null,null,0,0,0,0,0,0]
[null,null,null,null,null,0,0,0,0,0,0]
[null,null,null,null,null,0,0,0,0,0,0]
[null,null,null,null,null,0,0,0,0,0,0]
[null,null,null,null,null,0,0,0,0,1,1]
[null,null,null,null,null,0,0,0,0,0,0]
[null,null,null,null,null,0,0,0,0,0,0]
[null,null,null,null,null,0,0,0,0,0,0]
[null,null,null,null,null,0,0,0,0,0,0]
[null,null,null,null,null,0,0,0,0,0,0]
[null,null,null,null,null,0,0,0,0,0,0]
[null,null,null,null,null,0,0,0,0,0,0]
[null,null,null,null,null,0,0,0,0,0,0]
[null,null,null,null,null,0,0,0,0,0,0]
[null,null,null,null,null,0,0,0,0,0,0]
[null,null,null,null,null,0,0,0,0,0,0]

{"sheet":"Лист3","index":2,"n_rows":0,"n_cols":0,"rows_kept":0,"cut":false,"hidden":true,"merged":[]}

{"sheet":"Лист1","index":3,"n_rows":0,"n_cols":0,"rows_kept":0,"cut":false,"hidden":false,"merged":[]}